bitfinex-derivatives/quotes_ETHF0:USTF0_20250709
["timestamp","ask_amount","ask_price","bid_price","bid_amount"]
[1752079352640,1.3742,2661.3,2661.2,0.6537]
[1752079352839,1.3742,2661.3,2661.2,1.40513]
[1752079353040,2.0257,2661.3,2661.2,1.40513]
[1752079353740,0.75136,2661.5,2661.4,0.75135]
[1752079353945,0.75133,2661.6,2661.5,0.75135]
[1752079354130,1.40283,2661.6,2661.5,2.42855]
[1752079354337,1.40283,2661.6,2661.5,3.08815]
[1752079355038,1.40283,2661.6,2661.5,28.78315]
[1752079355734,1.40283,2661.6,2661.5,27.0083]
[1752079355938,3.14218008,2661.6,2661.5,25.695]
[1752079356340,3.14218008,2661.6,2661.5,26.44635]
[1752079356743,3.14218008,2661.6,2661.5,27.10005]
[1752079357342,3.14218008,2661.6,2661.5,26.44635]
[1752079357541,3.14218008,2661.6,2661.5,27.10005]
[1752079357844,3.14218008,2661.6,2661.5,26.44635]
[1752079358044,3.14218008,2661.6,2661.5,27.10005]
[1752079359039,1.40283,2661.6,2661.5,27.10005]
[1752079359238,1.40283,2661.6,2661.5,28.10595]
[1752079359432,0.6515,2661.6,2661.5,28.10595]
[1752079359642,0.6228,2661.8,2661.7,0.75129]
[1752079359843,44.75906,2661.9,2661.8,0.75126]
[1752079360040,0.75122,2662.0,2661.9,0.75123]
[1752079360241,2.85770104,2662.0,2661.9,0.75123]
[1752079360441,0.75122,2662.0,2661.9,0.75123]
[1752079360744,1.40132,2662.0,2661.9,0.75123]
[1752079363744,0.75123,2661.9,2661.8,2.41644]
[1752079365849,1.40133,2661.9,2661.8,2.41644]
[1752079366046,0.75123,2661.9,2661.8,0.75124]
[1752079366250,0.75123,2661.9,2661.8,2.41644]
[1752079366649,1.40133,2661.9,2661.8,2.41644]
[1752079368150,1.40133,2661.9,2661.8,1.41054]
[1752079370745,1.40133,2661.9,2661.8,0.6593]
[1752079370954,0.75129,2661.7,2661.6,0.6278]
[1752079371157,2.49064008,2661.7,2661.6,25.689]
[1752079371356,0.75135,2661.5,2661.4,31.58486599]
[1752079371552,0.75135,2661.5,2661.4,32.24416599]
[1752079371856,0.75135,2661.5,2661.4,27.76766]
[1752079372555,0.75135,2661.5,2661.4,0.668]
[1752079372853,2.49070008,2661.5,2661.4,1.3273]
[1752079373356,0.75137,2661.4,2661.3,5.48240599]
[1752079373655,0.7514,2661.3,2661.2,4.47650599]
[1752079373956,0.7514,2661.3,2661.2,30.82380599]
[1752079374457,1.4015,2661.3,2661.2,30.82380599]
[1752079374753,1.4015,2661.3,2661.2,31.57523599]
[1752079375455,1.4015,2661.3,2661.2,30.82380599]
[1752079375657,1.4015,2661.3,2661.2,26.3473]
[1752079376253,1.4015,2661.3,2661.2,0.6593]
[1752079376455,1.4015,2661.3,2661.2,27.09873]
[1752079376854,1.4015,2661.3,2661.2,1.41073]
[1752079377054,1.4015,2661.3,2661.2,27.09873]
[1752079378459,0.75143,2661.2,2661.1,5.11260599]
[1752079378758,1.40153,2661.2,2661.1,5.13580599]
[1752079379057,1.40153,2661.2,2661.1,0.6593]
[1752079379258,0.75143,2661.2,2661.1,0.6593]
[1752079379653,0.75143,2661.2,2661.1,5.13580599]
[1752079379859,1.40153,2661.2,2661.1,0.6593]
[1752079383864,1.40153,2661.2,2661.1,1.41076]
[1752079386763,1.40153,2661.2,2661.1,0.6593]
[1752079388166,1.40153,2661.2,2661.1,1.41076]
[1752079388771,1.40153,2661.2,2661.1,0.6593]
[1752079389469,4.60933,2661.2,2661.1,0.6593]
[1752079392772,4.60933,2661.2,2661.1,1.6404]
[1752079393875,4.60933,2661.2,2661.1,2.39186]
[1752079394075,1.40153,2661.2,2661.1,2.39186]
[1752079394873,1.40153,2661.2,2661.1,1.6404]
[1752079395075,1.40153,2661.2,2661.1,2.39186]
[1752079399180,1.40153,2661.2,2661.1,1.41076]
[1752079403482,1.40153,2661.2,2661.1,2.39186]
[1752079403682,0.75143,2661.2,2661.1,2.39186]
[1752079404780,1.40533,2661.2,2661.1,2.39186]
[1752079404985,0.75143,2661.2,2661.1,2.39186]
[1752079405186,1.40533,2661.2,2661.1,0.6593]
[1752079405587,1.40533,2661.2,2661.1,1.41076]
[1752079408585,1.40533,2661.2,2661.1,2.39186]
[1752079410589,1.40533,2661.2,2661.1,1.41076]
[1752079411390,1.40533,2661.2,2661.1,0.6593]
[1752079412786,1.40533,2661.2,2661.1,1.41076]
[1752079412995,1.40533,2661.2,2661.1,2.39186]
[1752079417296,1.40533,2661.2,2661.1,0.6593]
[1752079417893,1.40533,2661.2,2661.1,1.41076]
[1752079418093,1.40533,2661.2,2661.1,0.6593]
[1752079418600,1.40533,2661.2,2661.1,1.41076]
[1752079418900,1.40533,2661.2,2661.1,0.6593]
[1752079419800,1.40533,2661.2,2661.1,1.41076]
[1752079421202,1.40533,2661.2,2661.1,0.6593]
[1752079421999,3.50921,2661.2,2660.8,4.47650599]
[1752079422297,5.69866008,2660.9,2660.8,4.47650599]
[1752079422602,0.75154,2660.8,2660.7,4.47650599]
[1752079422800,2.10754,2660.8,2660.7,5.14580599]
[1752079423101,1.42474,2660.8,2660.7,5.14580599]
[1752079423500,42.22474,2660.8,2660.7,5.14580599]
[1752079423702,41.55154,2660.8,2660.7,6.86777599]
[1752079423900,1.87896,2660.7,2660.4,4.74650794]
[1752079424100,4.94715008,2660.5,2660.1,8.80135312]
[1752079424397,5.69878008,2660.5,2660.4,0.6693]
[1752079424905,6.38158008,2660.5,2660.4,5.92167003]
[1752079425105,3.2078,2660.5,2660.4,6.89207003]
[1752079425804,3.2078,2660.5,2660.4,2.39136]
[1752079427599,3.95943,2660.5,2660.4,2.39136]
[1752079427802,3.95943,2660.5,2660.4,1.6397]
[1752079428103,4.64223,2660.5,2660.4,0.6693]
[1752079428304,4.64223,2660.5,2660.4,1.42095]
[1752079428499,4.64223,2660.5,2660.4,2.39135]
[1752079429006,4.64223,2660.5,2660.4,1.6397]
[1752079429402,4.64223,2660.5,2660.4,0.6693]
[1752079429603,4.64223,2660.5,2660.4,2.39135]
[1752079430006,3.8906,2660.5,2660.4,2.39135]
[1752079431202,4.64223,2660.5,2660.4,2.39135]
[1752079431404,4.64223,2660.5,2660.4,1.6397]
[1752079432103,4.64223,2660.5,2660.4,0.6693]
[1752079433402,4.64223,2660.5,2660.4,2.39135]
[1752079433600,3.2078,2660.5,2660.4,2.39135]
[1752079433803,0.00562968,2660.6,2660.5,0.75163]
[1752079433804,0.75722968,2660.6,2660.5,0.75163]
[1752079434005,0.75722968,2660.6,2660.5,2.10173]
[1752079434200,0.75722968,2660.6,2660.5,3.07213]
[1752079435610,0.00562968,2660.6,2660.5,3.07213]
[1752079436107,0.75722968,2660.6,2660.5,3.07213]
[1752079436801,0.00562968,2660.6,2660.5,3.07213]
[1752079440710,0.00562968,2660.6,2660.5,6.27993]
[1752079443511,0.00562968,2660.6,2660.5,3.07213]
[1752079450726,0.00562968,2660.6,2660.5,4.35933]
[1752079450927,0.00562968,2660.6,2660.5,7.56713]
[1752079451521,0.6334,2661.0,2660.5,7.56713]
[1752079451522,2.37275008,2661.0,2660.5,7.56713]
[1752079451720,0.75152,2660.9,2660.8,0.75151]
[1752079451921,1.38322,2660.9,2660.8,1.41921]
[1752079452122,1.38322,2660.9,2660.8,2.41801]
[1752079453122,1.38322,2660.9,2660.8,0.6677]
[1752079453323,0.75157,2660.7,2660.6,26.4276]
[1752079453631,2.49092008,2660.7,2660.6,28.0941]
[1752079453832,3.12262008,2660.7,2660.6,28.0941]
[1752079454026,2.49092008,2660.7,2660.6,28.0941]
[1752079454230,3.12262008,2660.7,2660.6,28.0941]
[1752079455026,1.38327,2660.7,2660.6,28.0941]
[1752079456433,1.38327,2660.7,2660.6,27.3425]
[1752079456936,1.38327,2660.7,2660.6,28.0941]
[1752079457631,0.6317,2660.7,2660.6,28.0941]
[1752079457938,1.38327,2660.7,2660.6,28.0941]
[1752079458634,1.38327,2660.7,2660.6,27.0953]
[1752079459938,0.75157,2660.7,2660.6,26.4276]
[1752079460140,1.38327,2660.7,2660.6,32.59481003]
[1752079460337,1.38327,2660.7,2660.6,28.0941]
[1752079461139,1.38327,2660.7,2660.6,31.84321003]
[1752079461340,3.12262008,2660.7,2660.6,32.59481003]
[1752079461738,0.75157,2660.8,2660.7,0.75154]
[1752079462040,0.75157,2660.8,2660.7,2.41804]
[1752079462337,1.38327,2660.8,2660.7,0.6677]
[1752079463732,0.6317,2660.8,2660.6,30.92828003]
[1752079463938,0.75157,2660.7,2660.6,30.17671003]
[1752079464139,1.38327,2660.7,2660.6,30.84441003]
[1752079464338,1.38327,2660.7,2660.6,31.84321003]
[1752079464841,1.38327,2660.7,2660.6,32.59481003]
[1752079465040,1.38327,2660.7,2660.6,31.84321003]
[1752079465242,3.12262008,2660.7,2660.6,30.84141003]
[1752079465541,3.12262008,2660.7,2660.6,30.17371003]
[1752079465740,3.12262008,2660.7,2660.6,30.84141003]
[1752079466640,3.12262008,2660.7,2660.6,27.3395]
[1752079468836,3.12262008,2660.7,2660.6,28.0911]
[1752079469440,3.12262008,2660.7,2660.6,31.84021003]
[1752079469641,3.12262008,2660.7,2660.6,26.3407]
[1752079470446,3.12262008,2660.7,2660.6,27.0923]
[1752079470840,3.12262008,2660.7,2660.6,26.3407]
[1752079471042,3.12262008,2660.7,2660.6,27.0923]
[1752079472142,3.12262008,2660.7,2660.6,26.3407]
[1752079472449,1.38327,2660.7,2660.6,28.0911]
[1752079472639,1.38327,2660.7,2660.6,4.50071003]
[1752079472838,1.38327,2660.7,2660.6,25.671]
[1752079473039,3.35657,2660.7,2660.6,25.671]
[1752079473246,3.35657,2660.7,2660.6,26.3387]
[1752079474342,3.6064,2660.7,2660.6,25.671]
[1752079474549,4.35797,2660.7,2660.6,25.671]
[1752079475048,3.35657,2660.7,2660.6,25.671]
[1752079476342,3.35657,2660.7,2660.6,26.3387]
[1752079476544,3.35657,2660.7,2660.6,25.671]
[1752079476946,0.75163,2660.5,2660.4,1.43547968]
[1752079477247,3.12268008,2660.5,2660.4,27.77317968]
[1752079477646,3.12268008,2660.5,2660.4,28.78747968]
[1752079481040,1.38333,2660.5,2660.4,28.78747968]
[1752079481853,0.75163,2660.5,2660.4,28.78747968]
[1752079482052,0.75163,2660.5,2660.4,30.06307968]
[1752079482741,0.75162,2660.6,2660.5,0.7516]
[1752079482950,0.75162,2660.6,2660.5,28.0555]
[1752079483149,0.75159,2660.7,2660.6,0.7516]
[1752079483447,0.75159,2660.7,2660.6,2.3855]
[1752079483647,1.37329,2660.7,2660.6,2.3855]
[1752079484251,3.11264008,2660.7,2660.6,1.3712]
[1752079487953,3.11264008,2660.7,2660.6,2.3855]
[1752079491957,6.5825942,2661.7,2660.6,8.37325008]
[1752079492155,3.49909,2661.5,2661.0,1.73935008]
[1752079492359,2.21629179,2661.4,2661.3,0.75137]
[1752079492556,2.21629179,2661.4,2661.3,26.41837]
[1752079492855,0.75139,2661.4,2661.3,26.41837]
[1752079493157,1.37309,2661.4,2661.3,26.41837]
[1752079493657,1.37309,2661.4,2661.3,26.4184]
[1752079493859,1.37309,2661.4,2661.3,25.667]
[1752079494859,1.37309,2661.4,2661.3,26.4184]
[1752079495559,0.75139,2661.4,2661.3,25.667]
[1752079495760,0.75139,2661.4,2661.3,26.2866]
[1752079495953,0.75139,2661.4,2661.3,27.038]
[1752079496154,1.37309,2661.4,2661.3,27.038]
[1752079497261,1.37309,2661.4,2661.3,28.0523]
[1752079499954,1.37307,2661.4,2661.3,28.0523]
[1752079500159,0.75136,2661.5,2661.4,0.75132]
[1752079500359,0.75136,2661.5,2661.4,1.37092]
[1752079500661,0.75136,2661.5,2661.4,2.03152]
[1752079500864,1.37306,2661.5,2661.4,2.03152]
[1752079502668,1.37306,2661.5,2661.4,3.04582]
[1752079505168,0.6217,2661.5,2661.4,3.04582]
[1752079505662,0.7513,2661.8,2661.5,1.87834]
[1752079505861,0.75121,2662.1,2662.0,0.75117]
[1752079506061,3.95896,2662.2,2662.1,0.75117]
[1752079506265,6.68312529,2662.2,2662.1,1.37077]
[1752079506759,0.7512,2662.0,2661.9,26.29352968]
[1752079506967,0.7512,2662.0,2661.9,27.66434968]
[1752079507168,1.3729,2662.0,2661.9,27.66434968]
[1752079508468,3.8524,2662.2,2662.1,0.75117]
[1752079508664,4.4741,2662.2,2662.1,27.96847]
[1752079509165,1.2663,2662.2,2662.1,27.96847]
[1752079509962,2.01746,2662.2,2662.1,27.96847]
[1752079510972,0.6217,2662.2,2662.1,27.96847]
[1752079511168,0.75108,2662.5,2662.4,0.75106]
[1752079511470,0.75108,2662.5,2662.4,1.36766]
[1752079511665,1.41608,2662.5,2662.4,1.36766]
[1752079512472,0.665,2662.5,2662.4,2.31136]
[1752079513766,0.665,2662.5,2662.4,1.36766]
[1752079513965,1.41606,2662.5,2662.4,1.36766]
[1752079514165,1.41606,2662.5,2662.4,2.31136]
[1752079517772,1.41606,2662.5,2662.4,1.36766]
[1752079518575,1.41606,2662.5,2662.4,2.31136]
[1752079520068,1.41606,2662.5,2662.4,2.31139]
[1752079520268,1.41606,2662.5,2662.4,1.36769]
[1752079520972,1.87773,2662.4,2662.0,3.2078]
[1752079521272,3.15552008,2662.1,2662.0,28.8498]
[1752079521469,3.15552008,2662.1,2662.0,3.2078]
[1752079521770,3.15552008,2662.1,2662.0,28.8498]
[1752079523477,3.15552008,2662.1,2662.0,3.959]
[1752079523773,3.15552008,2662.1,2662.0,30.2176]
[1752079524170,3.15552008,2662.1,2662.0,29.4664]
[1752079524371,3.15552008,2662.1,2662.0,28.8498]
[1752079524674,3.15552008,2662.1,2662.0,29.4664]
[1752079525472,3.15552008,2662.1,2662.0,28.8498]
[1752079525876,3.15552008,2662.1,2662.0,29.4664]
[1752079526075,0.7512,2662.0,2661.9,0.00562968]
[1752079526275,1.87809,2661.9,2661.3,5.44441003]
[1752079526474,0.7514,2661.3,2661.2,3.2078]
[1752079526674,0.7514,2661.3,2661.2,29.4654]
[1752079526973,0.75146,2661.1,2661.0,2.34187]
[1752079527276,0.75146,2661.1,2661.0,27.848]
[1752079527677,0.75146,2661.1,2661.0,28.59949]
[1752079529778,1.41646,2661.1,2661.0,28.59949]
[1752079529975,1.41646,2661.1,2661.0,2.207]
[1752079530177,1.41646,2661.1,2661.0,28.60149]
[1752079535179,0.6701,2661.3,2661.1,0.75146]
[1752079535180,0.75144,2661.2,2661.1,0.75146]
[1752079535475,5.08577,2662.1,2661.1,5.31751]
[1752079535681,0.75128,2661.8,2661.7,0.75125]
[1752079535879,0.75128,2661.8,2661.7,27.63835]
[1752079536080,0.75128,2661.8,2661.7,28.58205]
[1752079536280,1.41628,2661.8,2661.7,28.58205]
[1752079537483,1.41628,2661.8,2661.7,26.8871]
[1752079539281,1.41628,2661.8,2661.7,27.63839]
[1752079540282,1.41628,2661.8,2661.7,26.8871]
[1752079541091,1.41628,2661.8,2661.7,1.2421]
[1752079541283,1.41628,2661.8,2661.7,26.8841]
[1752079541781,0.75132,2661.6,2661.4,25.642]
[1752079541980,3.14007008,2661.6,2661.5,0.6732]
[1752079542185,3.14007008,2661.6,2661.5,1.42454]
[1752079542385,3.14007008,2661.6,2661.5,0.6732]
[1752079542989,0.75134,2661.5,2661.4,25.642]
[1752079543290,0.7514,2661.3,2661.2,1.42163]
[1752079543582,0.7514,2661.3,2661.2,27.73683]
[1752079543779,1.4008,2661.3,2661.2,27.73683]
[1752079543979,2.0386,2661.3,2661.2,27.73683]
[1752079544182,2.0386,2661.3,2661.2,2.09483]
[1752079544478,2.0386,2661.3,2661.2,27.73583]
[1752079544880,1.4008,2661.3,2661.2,28.68163]
[1752079545277,0.7514,2661.3,2661.2,28.68163]
[1752079545577,0.7514,2661.4,2661.3,0.75137]
[1752079545776,0.7514,2661.4,2661.3,2.70567]
[1752079545984,0.7514,2661.4,2661.3,3.65147]
[1752079546682,0.7514,2661.4,2661.3,2.37037]
[1752079547386,1.4008,2661.4,2661.3,1.42457]
[1752079548684,1.4008,2661.4,2661.3,0.6732]
[1752079549192,1.4008,2661.4,2661.3,1.4246]
[1752079549583,1.4008,2661.4,2661.3,2.3704]
[1752079552692,1.4008,2661.4,2661.3,28.0104]
[1752079552889,1.4008,2661.4,2661.3,27.0646]
[1752079555396,1.4008,2661.4,2661.3,28.0104]
[1752079557297,0.75135,2661.6,2661.5,0.75132]
[1752079557498,0.75135,2661.6,2661.5,2.37032]
[1752079557698,0.75135,2661.6,2661.5,1.619]
[1752079557898,1.40075,2661.6,2661.5,0.6732]
[1752079559294,1.40075,2661.6,2661.5,1.42454]
[1752079559499,1.40075,2661.6,2661.5,0.6732]
[1752079559797,0.75135,2661.6,2661.5,1.42454]
[1752079560403,1.40075,2661.6,2661.5,0.6732]
[1752079561103,1.40075,2661.6,2661.5,1.42454]
[1752079563000,1.40075,2661.6,2661.5,0.6732]
[1752079563800,1.40075,2661.6,2661.5,1.42454]
[1752079564602,1.40075,2661.6,2661.5,2.37034]
[1752079564806,1.40075,2661.6,2661.5,0.6732]
[1752079565603,1.40075,2661.6,2661.5,1.42454]
[1752079565902,1.40075,2661.6,2661.5,2.37034]
[1752079568510,0.75131,2661.7,2661.6,0.75128]
[1752079568806,1.40071,2661.7,2661.6,2.41728]
[1752079569112,1.40071,2661.7,2661.6,3.08398]
[1752079569309,0.75134,2661.6,2661.4,4.50071003]
[1752079569509,1.40234,2661.6,2661.5,0.6584]
[1752079570008,2.06904,2661.6,2661.5,0.6584]
[1752079570208,2.06904,2661.6,2661.5,1.40973]
[1752079570608,2.06904,2661.6,2661.5,2.40253]
[1752079571209,0.75134,2661.6,2661.5,32.53824003]
[1752079571411,0.75131,2661.7,2661.6,0.75128]
[1752079571610,0.75131,2661.7,2661.6,1.40968]
[1752079571814,0.75131,2661.7,2661.6,2.40248]
[1752079572205,8.51915008,2662.1,2661.6,1.6512]
[1752079572413,0.75126,2661.9,2661.8,0.75123]
[1752079572712,0.75126,2661.9,2661.8,2.40243]
[1752079572913,1.41796,2661.9,2661.8,2.40243]
[1752079573117,0.75126,2661.9,2661.8,2.40243]
[1752079573313,1.41796,2661.9,2661.8,1.40963]
[1752079574217,0.75126,2661.8,2661.7,1.41818]
[1752079574415,1.41796,2661.8,2661.7,1.41818]
[1752079574616,0.75129,2661.7,2661.6,0.7513]
[1752079574818,2.08089,2661.7,2661.6,1.4097]
[1752079575011,1.41419,2661.7,2661.6,1.4097]
[1752079575515,2.08089,2661.7,2661.6,1.4097]
[1752079575816,2.08089,2661.7,2661.6,2.4025]
[1752079576717,1.41799,2661.7,2661.6,2.4025]
[1752079577315,0.75129,2661.7,2661.6,2.4025]
[1752079578212,1.41799,2661.7,2661.6,2.4025]
[1752079578619,0.75129,2661.7,2661.6,2.4025]
[1752079578818,1.41799,2661.7,2661.6,2.4025]
[1752079582725,1.41799,2661.7,2661.6,1.4097]
[1752079583623,1.41799,2661.7,2661.6,2.4025]
[1752079583823,0.75128,2661.8,2661.7,0.75129]
[1752079584028,0.75128,2661.8,2661.7,2.40249]
[1752079584323,0.75676968,2662.3,2662.2,0.75115]
[1752079584520,0.75674968,2662.3,2662.2,2.40235]
[1752079584825,0.00562968,2662.3,2662.2,2.40235]
[1752079585222,0.00562968,2662.3,2662.2,3.63925]
[1752079586222,0.75674968,2662.3,2662.2,3.63925]
[1752079586424,1.42344968,2662.3,2662.2,0.6584]
[1752079586918,0.75115,2662.2,2662.1,3.95895]
[1752079587217,2.07775,2662.2,2662.1,30.24335]
[1752079587726,2.07775,2662.2,2662.1,27.03555]
[1752079587929,1.41105,2662.2,2662.1,27.03555]
[1752079588428,2.07775,2662.2,2662.1,27.03555]
[1752079588923,0.75675968,2662.3,2662.2,0.75115]
[1752079589127,0.75675968,2662.3,2662.2,1.40955]
[1752079589322,1.42345968,2662.3,2662.2,2.40235]
[1752079589528,0.75675968,2662.3,2662.2,2.40235]
[1752079589729,1.42345968,2662.3,2662.2,2.40235]
[1752079590326,1.42345968,2662.3,2662.2,1.6512]
[1752079590522,1.42345968,2662.3,2662.2,0.6584]
[1752079591527,0.75115,2662.2,2662.1,25.626]
[1752079591828,2.08605,2662.2,2662.1,26.2844]
[1752079592029,1.41935,2662.2,2662.1,27.03557]
[1752079592224,2.08605,2662.2,2662.1,27.03557]
[1752079593332,2.08605,2662.2,2662.1,28.02837]
[1752079593728,2.08605,2662.2,2662.1,26.2844]
[1752079597532,2.08605,2662.2,2662.1,25.626]
[1752079597929,2.08605,2662.2,2662.1,26.2844]
[1752079600628,2.08605,2662.2,2662.1,27.03557]
[1752079600827,1.41785,2662.2,2662.1,27.99567]
[1752079601028,0.00562968,2662.3,2662.2,0.75115]
[1752079601228,0.00562968,2662.3,2662.2,3.05585]
[1752079601538,0.00562968,2662.3,2662.2,4.39275]
[1752079601940,0.75109,2662.5,2662.4,2.49040008]
[1752079602129,0.75109,2662.5,2662.4,29.74840008]
[1752079602935,0.6339,2662.7,2662.4,28.99735008]
[1752079603145,3.95881,2662.8,2662.7,0.75101]
[1752079603440,3.95881,2662.8,2662.7,28.00801]
[1752079603836,0.75101,2662.8,2662.7,28.00801]
[1752079604141,0.75096,2662.9,2662.8,0.75098]
[1752079604330,0.75096,2662.9,2662.8,2.38998]
[1752079604641,0.75096,2662.9,2662.8,3.67398]
[1752079604842,0.75096,2662.9,2662.8,1.639]
[1752079605039,1.39026,2662.9,2662.8,0.6789]
[1752079607141,0.75098,2662.8,2662.7,25.618]
[1752079607343,2.03428,2662.8,2662.7,26.36901]
[1752079607543,2.03428,2662.8,2662.7,26.2969]
[1752079607740,1.39498,2662.8,2662.7,26.2969]
[1752079607945,2.03428,2662.8,2662.7,26.2969]
[1752079612245,0.75096,2662.9,2662.8,0.75098]
[1752079612444,0.75096,2662.9,2662.8,3.02208]
[1752079612639,0.75096,2662.9,2662.8,4.38698]
[1752079613039,0.75093,2663.1,2663.0,0.75089]
[1752079613249,0.75093,2663.1,2663.0,1.42979]
[1752079613443,0.75093,2663.1,2663.0,2.38989]
[1752079613846,0.75093,2663.1,2663.0,1.639]
[1752079614041,1.39023,2663.1,2663.0,1.42982]
[1752079615349,1.39023,2663.1,2663.0,0.6789]
[1752079615745,1.39023,2663.1,2663.0,1.42982]
[1752079616552,0.6638,2663.4,2663.2,0.75086]
[1752079616747,0.75086,2663.3,2663.2,2.49021008]
[1752079617147,0.75086,2663.3,2663.2,3.16911008]
[1752079617351,0.75086,2663.3,2663.2,4.12921008]
[1752079617549,41.4638,2663.6,2663.2,4.70835008]
[1752079617751,0.75084,2663.4,2663.3,27.68982]
[1752079618055,1.39014,2663.4,2663.3,0.6789]
[1752079618352,1.39014,2663.4,2663.3,26.2869]
[1752079618653,0.75089,2663.2,2663.1,0.75089]
[1752079618953,0.75089,2663.2,2663.1,27.03779]
[1752079619252,1.39019,2663.2,2663.1,27.03779]
[1752079619552,1.39019,2663.2,2663.0,0.9601]
[1752079619553,0.75092,2663.0,2662.9,0.75093]
[1752079619755,0.75092,2663.0,2662.9,26.35893]
[1752079619946,0.75092,2663.0,2662.9,27.99793]
[1752079620947,1.40739,2663.2,2663.1,0.75089]
[1752079621162,0.75089,2663.2,2663.1,27.99589]
[1752079621650,1.39019,2663.2,2663.1,27.99589]
[1752079622453,1.39019,2663.2,2663.1,29.23699]
[1752079622853,0.75089,2663.2,2663.1,29.23699]
[1752079624356,0.75086,2663.3,2663.2,0.75084]
[1752079624550,0.75086,2663.3,2663.2,29.23494]
[1752079624954,0.75086,2663.3,2663.2,30.97429008]
[1752079625349,0.75086,2663.3,2663.2,27.99384]
[1752079625550,0.75086,2663.3,2663.2,29.73319008]
[1752079626662,0.75083,2663.4,2663.3,0.75079]
[1752079626858,0.75083,2663.4,2663.3,6.83539]
[1752079627857,1.87711,2663.3,2663.0,3.2078]
[1752079628064,2.49021008,2663.2,2663.1,25.601]
[1752079628362,1.39836,2663.2,2663.1,26.2799]
[1752079628563,2.03766,2663.2,2663.1,26.2799]
[1752079628762,2.03766,2663.2,2663.1,27.03079]
[1752079629865,1.87698,2663.5,2663.2,0.75082]
[1752079629866,0.75086,2663.3,2663.2,0.75082]
[1752079630067,0.75086,2663.3,2663.2,4.79207008]
[1752079630666,0.75086,2663.3,2663.2,6.07807008]
[1752079632762,1.42966,2663.3,2663.2,6.07807008]
[1752079632965,1.42966,2663.3,2663.2,3.05272]
[1752079634467,1.42966,2663.3,2663.2,2.3019]
[1752079635869,1.42966,2663.3,2663.2,3.05276]
[1752079636469,1.42966,2663.3,2663.2,1.3147]
[1752079637469,1.42966,2663.3,2663.0,3.2078]
[1752079637470,0.75089,2663.1,2663.0,3.2078]
[1752079637671,0.75089,2663.1,2663.0,29.4718]
[1752079637869,1.42969,2663.1,2663.0,29.4718]
[1752079638063,0.75089,2663.1,2663.0,29.4718]
[1752079638262,1.42969,2663.1,2663.0,30.22271]
[1752079639676,1.42969,2663.1,2663.0,29.4718]
[1752079640272,1.42969,2663.1,2663.0,30.22272]
[1752079640472,1.42969,2663.1,2663.0,29.4718]
[1752079640975,1.42969,2663.1,2663.0,28.8058]
[1752079641170,1.42969,2663.1,2663.0,30.76471003]
[1752079641374,1.42969,2663.1,2663.0,25.598]
[1752079641775,1.42969,2663.1,2663.0,26.264]
[1752079641978,1.42969,2663.1,2663.0,27.01492]
[1752079642379,1.42969,2663.1,2663.0,26.263]
[1752079642881,1.42969,2663.1,2663.0,27.01392]
[1752079643081,1.42969,2663.1,2663.0,26.263]
[1752079643283,1.42969,2663.1,2663.0,30.76371003]
[1752079643582,1.42969,2663.1,2663.0,27.02571003]
[1752079643983,1.42969,2663.1,2663.0,27.01292]
[1752079644779,1.42969,2663.1,2663.0,26.262]
[1752079645479,1.42969,2663.1,2663.0,27.01292]
[1752079647086,1.42969,2663.1,2663.0,26.262]
[1752079647579,1.42969,2663.1,2663.0,27.01292]
[1752079648087,1.42969,2663.1,2663.0,26.262]
[1752079648288,1.42969,2663.1,2663.0,27.01292]
[1752079650885,1.42969,2663.1,2663.0,0.666]
[1752079651086,1.42969,2663.1,2663.0,26.261]
[1752079651587,1.42969,2663.1,2663.0,27.01192]
[1752079652087,1.42969,2663.1,2663.0,27.99912]
[1752079653090,0.75089,2663.1,2663.0,27.99912]
[1752079653290,0.75089,2663.1,2663.0,32.56012]
[1752079654391,0.75081,2663.5,2663.4,0.75078]
[1752079654589,5.08441,2664.0,2663.5,1.87696]
[1752079654892,2.23515701,2663.9,2663.8,2.49004008]
[1752079655094,2.91395701,2663.9,2663.8,3.15604008]
[1752079655292,0.75069,2663.8,2663.7,26.3437]
[1752079655482,2.91397701,2663.8,2663.7,25.593]
[1752079655687,2.91397701,2663.8,2663.7,26.259]
[1752079655889,2.91397701,2663.8,2663.7,25.593]
[1752079656086,2.90554869,2663.8,2663.7,26.259]
[1752079656283,2.90554869,2663.8,2663.7,25.593]
[1752079656489,3.88134869,2663.8,2663.7,25.593]
[1752079656689,3.88134869,2663.8,2663.7,26.259]
[1752079657088,3.88134869,2663.8,2663.7,0.666]
[1752079659094,0.75072,2663.7,2663.6,0.6446]
[1752079659297,0.75075,2663.6,2663.5,0.00562968]
[1752079659495,1.87697,2663.5,2663.0,3.8699]
[1752079659789,1.39299,2663.1,2663.0,26.2531]
[1752079659986,0.6421,2663.1,2663.0,27.64602]
[1752079660194,4.524,2663.4,2663.0,27.64602]
[1752079660195,0.75088,2663.2,2663.1,0.75089]
[1752079660389,1.39298,2663.2,2663.1,1.39289]
[1752079662499,1.39298,2663.2,2663.1,0.75089]
[1752079662794,1.39298,2663.2,2663.1,1.39289]
[1752079663096,1.39298,2663.2,2663.1,0.642]
[1752079663297,0.75089,2663.1,2663.0,27.004]
[1752079663498,1.39299,2663.1,2663.0,27.646]
[1752079665098,0.6421,2663.1,2663.0,27.646]
[1752079665299,0.6421,2663.1,2663.0,28.6261]
[1752079665499,0.6421,2663.1,2663.0,30.36545008]
[1752079666014,0.75083,2663.4,2663.3,0.7508]
[1752079666299,0.75083,2663.4,2663.3,26.9828]
[1752079666493,1.39293,2663.4,2663.3,27.9629]